bitfinex/quotes_BTCUSD_20230403
["timestamp","ask_amount","ask_price","bid_price","bid_amount"]
[1680543958311,1.33684724,27997.0,27996.0,0.04645829]
[1680543958722,1.63684724,27997.0,27996.0,0.04645829]
[1680543959608,1.65884724,27997.0,27996.0,0.04645829]
[1680543960672,0.37309385,27997.0,27996.0,0.04645829]
[1680543960886,0.05573285,27997.0,27996.0,0.04645829]
[1680543961089,0.04323185,27997.0,27996.0,0.04645829]
[1680543961320,0.04323185,27997.0,27992.0,0.64535316]
[1680543961527,0.19762966,27997.0,27992.0,0.64535316]
[1680543961731,0.19262966,27997.0,27992.0,0.37608]
[1680543962345,0.06900316,27997.0,27992.0,0.37608]
[1680543963183,0.03450216,27997.0,27992.0,0.37608]
[1680543963408,0.03550216,27997.0,27992.0,0.37708]
[1680543963843,0.04800316,27997.0,27992.0,0.37708]
[1680543965903,0.26716458,27997.0,27992.0,0.00118]
[1680543966127,0.18989997,27997.0,27992.0,0.00118]
[1680543966577,0.04800316,27997.0,27992.0,0.00118]
[1680543966827,0.04800316,27997.0,27992.0,0.20118]
[1680543969585,0.04800316,27997.0,27992.0,0.66188]
[1680543969586,0.03550216,27997.0,27992.0,0.66188]
[1680543969879,0.03550216,27997.0,27995.0,0.2]
[1680543970220,0.03550216,27997.0,27995.0,0.20018]
[1680543970417,0.03450216,27997.0,27995.0,0.20018]
[1680543970644,0.03550216,27997.0,27995.0,0.20018]
[1680543970877,0.03450216,27997.0,27995.0,0.20018]
[1680543971105,0.04950216,27997.0,27995.0,0.00018]
[1680543971323,0.015,27997.0,27995.0,0.20018]
[1680543971556,0.015,27997.0,27995.0,0.19985316]
[1680543972237,0.03196692,27996.0,27995.0,0.19985316]
[1680543972477,0.03196692,27996.0,27995.0,0.24143416]
[1680543973210,0.03196692,27996.0,27995.0,0.34283416]
[1680543973426,0.015,27996.0,27995.0,0.34443416]
[1680543973652,0.05863698,28001.0,27995.0,0.68024472]
[1680543973653,0.05881698,28001.0,27995.0,0.68024472]
[1680543973873,0.0125,27999.0,27997.0,0.0848]
[1680543974398,0.0125,28000.0,27995.0,0.19985316]
[1680543974440,0.04592754,28000.0,27995.0,0.19985316]
[1680543975737,0.001,27999.0,27997.0,0.013]
[1680543975973,0.04692754,28000.0,27996.0,0.19985316]
[1680543976903,0.04592754,28000.0,27996.0,0.19985316]
[1680543977122,0.04692754,28000.0,27996.0,0.19985316]
[1680543978027,0.03442754,28000.0,27996.0,0.19985316]
[1680543978464,0.18882435,28000.0,27996.0,0.19985316]
[1680543978680,0.04692754,28000.0,27996.0,0.19985316]
[1680543979341,0.05993906,28000.0,27996.0,0.19985316]
[1680543979579,0.05993906,28000.0,27994.0,0.46028]
[1680543979580,0.00014684,27997.0,27994.0,0.00018]
[1680543979802,0.037504,27996.0,27991.0,0.46218]
[1680543980029,0.00014684,27993.0,27991.0,0.00018]
[1680543980251,0.00014684,27993.0,27988.0,0.0209]
[1680543980252,0.00014684,27989.0,27988.0,0.0209]
[1680543980539,0.14189681,27989.0,27988.0,0.79203756]
[1680543980771,0.00014684,27989.0,27988.0,0.79290156]
[1680543980992,0.012504,27991.0,27988.0,0.79290156]
[1680543981222,0.00014684,27989.0,27988.0,0.75151056]
[1680543981449,0.00014684,27989.0,27988.0,0.79270256]
[1680543982160,0.00014684,27989.0,27988.0,0.062092]
[1680543982395,0.00014684,27989.0,27988.0,0.0269]
[1680543982848,0.00114684,27989.0,27988.0,0.0329]
[1680543983434,0.001,27989.0,27988.0,0.0329]
[1680543983874,0.001,27989.0,27988.0,0.074361]
[1680543984526,0.001,27989.0,27988.0,0.029734]
[1680543986951,0.001,27989.0,27987.0,0.28636851]
[1680543987159,0.001,27989.0,27988.0,0.027178]
[1680543987374,0.001,27989.0,27987.0,0.28636851]
[1680543987590,0.001,27989.0,27988.0,0.029932]
[1680543988272,0.001,27989.0,27987.0,0.28636851]
[1680543988506,0.001,27989.0,27988.0,0.028294]
[1680543988723,0.001,27989.0,27987.0,0.28636851]
[1680543988952,0.00014684,27990.0,27987.0,0.28636851]
[1680543989616,0.00014684,27990.0,27987.0,0.29036851]
[1680543989858,0.001,27989.0,27987.0,0.29036851]
[1680543990085,0.001,27989.0,27988.0,0.028406]
[1680543990315,0.001,27989.0,27987.0,0.29036851]
[1680543990543,0.00014684,27990.0,27988.0,0.028028]
[1680543990766,0.00114684,27990.0,27987.0,0.29036851]
[1680543990985,0.00014684,27990.0,27987.0,0.28636851]
[1680543991198,0.00014684,27990.0,27987.0,0.29036851]
[1680543991418,0.001,27989.0,27987.0,0.28636851]
[1680543991636,0.00014684,27990.0,27987.0,0.28636851]
[1680543991860,0.00014684,27990.0,27987.0,0.29036851]
[1680543991861,0.00114684,27990.0,27987.0,0.29036851]
[1680543992777,0.00114684,27990.0,27987.0,1.12304407]
[1680543993007,0.00114684,27990.0,27988.0,0.030413]
[1680543994162,0.00014684,27990.0,27988.0,0.030413]
[1680543994389,0.00214684,27990.0,27988.0,0.030413]
[1680543994628,0.002,27990.0,27989.0,0.73061056]
[1680543994867,0.002,27990.0,27989.0,0.77602556]
[1680543995534,0.002,27990.0,27989.0,0.75816156]
[1680543995828,0.002,27990.0,27989.0,0.77602556]
[1680543996992,0.00014684,27993.0,27989.0,0.77602556]
[1680543997214,0.001,27990.0,27989.0,0.75247456]
[1680543997474,0.00014684,27993.0,27989.0,0.77683556]
[1680543997713,0.002,27990.0,27989.0,0.73461056]
[1680543997950,0.00014684,27993.0,27989.0,0.75922656]
[1680543998187,0.00114684,27993.0,27990.0,0.027994]
[1680543998426,0.00014684,27993.0,27990.0,0.027994]
[1680543998662,0.00214684,27993.0,27990.0,0.803894]
[1680543998902,0.00014684,27993.0,27991.0,0.029396]
[1680543999840,0.00114684,27993.0,27991.0,0.029396]
[1680544000069,0.00014684,27993.0,27992.0,0.73061056]
[1680544000294,0.00114684,27993.0,27992.0,0.76097256]
[1680544000517,0.00014684,27993.0,27992.0,0.76097256]
[1680544000740,0.00214684,27993.0,27992.0,0.76097256]
[1680544000952,0.00014684,27993.0,27992.0,0.76097256]
[1680544001241,0.00014684,27993.0,27992.0,0.73061056]
[1680544001476,0.00814684,27993.0,27992.0,0.75756456]
[1680544002355,0.00814684,27993.0,27990.0,0.7759]
[1680544002589,0.00814684,27993.0,27991.0,0.02848]
[1680544002829,0.00014684,27993.0,27989.0,0.0848]
[1680544003048,0.02064984,27993.0,27989.0,0.43951056]
[1680544003278,0.14189681,27992.0,27987.0,0.08554256]
[1680544003539,0.01706848,27993.0,27985.0,0.61426957]
[1680544003540,0.00014684,27988.0,27985.0,0.40018]
[1680544003764,0.00014684,27988.0,27984.0,0.10626256]
[1680544003765,0.14204365,27988.0,27984.0,0.10626256]
[1680544004222,0.14222365,27988.0,27984.0,0.0209]
[1680544004462,0.14189681,27987.0,27985.0,0.001]
[1680544004691,0.15202,27986.0,27985.0,0.001]
[1680544004922,1.43850302,27986.0,27985.0,0.001]
[1680544005155,1.73850302,27986.0,27985.0,0.001]
[1680544005375,2.03168719,27986.0,27985.0,0.001]
[1680544005834,0.06320081,27986.0,27985.0,0.001]
[1680544006086,0.06320081,27986.0,27984.0,0.0209]
[1680544006087,0.00014684,27985.0,27984.0,0.0209]
[1680544006308,0.03091684,27985.0,27984.0,0.0219]
[1680544006533,0.00018,27985.0,27984.0,0.0209]
[1680544006983,0.00032684,27985.0,27984.0,0.0209]
[1680544007248,0.01514684,27985.0,27984.0,0.0209]
[1680544007475,0.02954784,27985.0,27984.0,0.0209]
[1680544007711,0.03148284,27985.0,27984.0,0.0209]
[1680544007931,0.00032684,27985.0,27984.0,0.0209]
[1680544008380,0.02132684,27985.0,27984.0,0.0209]
[1680544009291,0.05370498,27985.0,27984.0,0.0209]
[1680544009508,0.05352498,27985.0,27984.0,0.0209]
[1680544009727,0.05367182,27985.0,27984.0,0.0209]
[1680544010170,0.03267182,27985.0,27984.0,0.0209]
[1680544010390,0.05367182,27985.0,27984.0,0.0209]
[1680544010622,0.05385182,27985.0,27984.0,0.0209]
[1680544011124,0.05367182,27985.0,27984.0,0.0209]
[1680544011347,0.06635782,27985.0,27984.0,0.0209]
[1680544012232,0.0754947,27985.0,27984.0,0.0209]
[1680544012462,0.1906657,27985.0,27984.0,0.0209]
[1680544012708,0.4906657,27985.0,27984.0,0.0209]
[1680544013146,0.61156251,27985.0,27984.0,0.0209]
[1680544013372,0.4696657,27985.0,27984.0,0.0209]
[1680544013643,1.4696657,27985.0,27984.0,0.0209]
[1680544013863,1.0781657,27985.0,27984.0,0.0209]
[1680544014082,1.0991657,27985.0,27984.0,0.0209]
[1680544014301,1.0781657,27985.0,27984.0,0.0209]
[1680544014541,1.1891857,27985.0,27984.0,0.0001]
[1680544014757,0.2,27982.0,27979.0,0.0209]
[1680544014990,0.0848,27980.0,27979.0,0.0209]
[1680544015225,0.42636684,27980.0,27979.0,0.0209]
[1680544016107,0.45336684,27980.0,27979.0,0.0209]
[1680544019942,0.00014684,27975.0,27971.0,0.8574]
[1680544020190,0.14189681,27974.0,27972.0,0.030248]
[1680544020408,0.14189681,27974.0,27972.0,0.430428]
[1680544020627,0.01265784,27975.0,27972.0,0.00018]
[1680544020849,0.01265784,27975.0,27971.0,0.45758]
[1680544021083,0.01265784,27975.0,27972.0,0.4]
[1680544021084,0.01365784,27975.0,27972.0,0.4]
[1680544021339,0.01265784,27975.0,27972.0,0.00018]
[1680544021584,0.01265784,27975.0,27971.0,0.0309]
[1680544021585,0.008,27975.0,27971.0,0.0309]
[1680544022041,0.020511,27975.0,27971.0,0.03108]
[1680544022980,0.01707888,27975.0,27971.0,0.03108]
[1680544023211,0.029946,27974.0,27971.0,0.0309]
[1680544023437,0.042458,27974.0,27971.0,0.03108]
[1680544023672,0.029971,27973.0,27971.0,0.03108]
[1680544023912,0.012512,27973.0,27971.0,0.03108]
[1680544024139,0.015,27974.0,27971.0,0.03108]
[1680544024376,0.041397,27973.0,27971.0,0.0309]
[1680544024609,0.06435576,27972.0,27971.0,0.03108]
[1680544024854,0.03513176,27972.0,27971.0,0.03108]
[1680544025089,0.06481076,27972.0,27971.0,0.0309]
[1680544026217,0.03513176,27972.0,27971.0,0.0309]
[1680544026530,0.09197518,27972.0,27971.0,0.0309]
[1680544026752,0.08590076,27972.0,27971.0,0.0309]
[1680544026977,0.05613176,27972.0,27971.0,0.0309]
[1680544028367,0.021,27972.0,27971.0,0.0309]
[1680544031357,0.05591516,27972.0,27971.0,0.0309]
[1680544032078,0.06842716,27972.0,27971.0,0.0309]
[1680544032305,0.09742616,27972.0,27971.0,0.0309]
[1680544033071,0.08491416,27972.0,27971.0,0.0309]
[1680544033317,0.09742616,27972.0,27971.0,0.0309]
[1680544033774,0.10968576,27972.0,27971.0,0.0309]
[1680544034011,0.05591516,27972.0,27971.0,0.0309]
[1680544034940,0.05591516,27972.0,27971.0,0.059755]
[1680544035398,0.021,27972.0,27971.0,0.059077]
[1680544035640,0.021,27972.0,27971.0,0.058897]
[1680544036556,0.02114684,27972.0,27971.0,0.0309]
[1680544036783,0.021,27972.0,27971.0,0.0309]
[1680544037031,0.033512,27972.0,27971.0,0.0309]
[1680544037261,0.03951234,27972.0,27971.0,0.0309]
[1680544037490,0.10361426,27972.0,27971.0,0.0309]
[1680544037725,0.09110226,27972.0,27971.0,0.0309]
[1680544037946,0.10361426,27972.0,27971.0,0.0309]
[1680544038661,0.09776076,27972.0,27971.0,0.0309]
[1680544039128,0.08524876,27972.0,27971.0,0.0309]
[1680544039359,0.09776076,27972.0,27971.0,0.0309]
[1680544040071,0.08524876,27972.0,27971.0,0.0309]
[1680544040302,0.05543976,27972.0,27971.0,0.0309]
[1680544041027,0.08365176,27972.0,27971.0,0.0309]
[1680544041259,0.05543976,27972.0,27971.0,0.0309]
[1680544042429,0.08315876,27972.0,27971.0,0.0309]
[1680544042671,0.03443976,27972.0,27971.0,0.0309]
[1680544042896,0.06411576,27972.0,27971.0,0.0309]
[1680544043121,0.05543976,27972.0,27971.0,0.0309]
[1680544043365,0.08669476,27972.0,27971.0,0.0309]
[1680544044047,0.08448776,27972.0,27971.0,0.02990588]
[1680544044286,0.05543976,27972.0,27971.0,0.02990588]
[1680544045223,0.05543976,27972.0,27971.0,0.89041544]
[1680544045224,0.05529292,27972.0,27971.0,0.89041544]
[1680544045491,0.05529292,27972.0,27971.0,1.06213544]
[1680544045727,0.05529292,27972.0,27971.0,1.06207544]
[1680544046032,0.00018,27979.0,27975.0,0.3759]
[1680544046233,0.00014684,27980.0,27976.0,0.822393]
[1680544046460,0.00014684,27980.0,27977.0,0.028851]
[1680544046689,0.00014684,27980.0,27978.0,0.017871]
[1680544046918,0.00014684,27980.0,27979.0,0.028013]
[1680544047145,0.00014684,27980.0,27978.0,0.028732]
[1680544047382,0.03836407,27979.0,27978.0,0.028732]
[1680544048064,0.03836407,27979.0,27977.0,0.19953]
[1680544048291,0.00014684,27980.0,27978.0,0.029234]
[1680544048554,0.00014684,27980.0,27978.0,0.008]
[1680544048555,0.001,27979.0,27978.0,0.008]
[1680544048749,0.00014684,27980.0,27978.0,0.028474]
[1680544048998,0.00014684,27980.0,27977.0,0.027444]
[1680544049467,0.03836407,27979.0,27977.0,0.027444]
[1680544049660,0.03936407,27979.0,27977.0,0.041444]
[1680544049909,0.03836407,27979.0,27978.0,0.027526]
[1680544050135,0.03836407,27979.0,27977.0,0.041925]
[1680544050340,0.00114684,27980.0,27978.0,0.028102]
[1680544050575,0.00014684,27980.0,27979.0,0.3759]
[1680544050793,0.00014684,27980.0,27979.0,0.805729]
[1680544051250,0.00014684,27980.0,27979.0,1.17830956]
[1680544051495,0.00018,27982.0,27979.0,1.43458956]
[1680544051719,0.00014684,27984.0,27981.0,0.46]
[1680544051951,0.00014684,27984.0,27983.0,0.3759]
[1680544052223,0.00014684,27984.0,27983.0,1.15957356]
[1680544052512,0.00032684,27984.0,27983.0,0.428963]
[1680544052962,0.00014684,27984.0,27983.0,0.428963]
[1680544053197,0.01614684,27984.0,27983.0,0.430963]
[1680544053679,0.01614684,27984.0,27983.0,0.806863]
[1680544053910,0.016,27984.0,27983.0,0.806863]
[1680544054174,0.016,27984.0,27983.0,0.978283]
[1680544055857,0.059807,27984.0,27983.0,0.002]
[1680544056344,0.00014684,27980.0,27979.0,0.00018]
[1680544056574,0.00014684,27980.0,27977.0,0.77608]
[1680544056799,0.00014684,27980.0,27978.0,0.029184]
[1680544057245,0.00014684,27980.0,27979.0,0.001]
[1680544057491,0.01265584,27980.0,27979.0,0.001]
[1680544058387,0.01265584,27980.0,27975.0,0.40018]
[1680544058388,0.00014684,27976.0,27975.0,0.40018]
[1680544058641,0.00014684,27976.0,27975.0,0.430324]
[1680544059486,0.00114684,27976.0,27975.0,0.444324]
[1680544059714,0.00114684,27976.0,27975.0,0.674424]
[1680544059937,0.00114684,27976.0,27975.0,1.42290756]
[1680544060154,0.001,27976.0,27975.0,1.42290756]
[1680544060376,0.00114684,27976.0,27975.0,1.50770756]
[1680544060595,0.04976979,27982.0,27976.0,0.4]
[1680544060824,0.04994979,27982.0,27979.0,0.3759]
[1680544061055,0.04994979,27982.0,27978.0,0.0848]
[1680544061056,0.04976979,27982.0,27981.0,0.3759]
[1680544061294,0.00018,27983.0,27981.0,0.73061056]
[1680544061529,0.001,27982.0,27981.0,0.73061056]
[1680544061742,0.00014684,27983.0,27981.0,0.83327956]
[1680544061959,0.00014684,27983.0,27982.0,1.24325456]
[1680544062430,0.00018,27986.0,27982.0,1.49282256]
[1680544062689,0.00018,27986.0,27984.0,0.3759]
[1680544062690,0.00014684,27986.0,27984.0,0.3759]
[1680544062904,0.00014684,27986.0,27985.0,0.80511]
[1680544064471,0.00114684,27986.0,27985.0,1.04141]
[1680544064693,0.00014684,27986.0,27985.0,1.04141]
[1680544064916,0.00114684,27986.0,27985.0,1.06141]
[1680544065878,0.02317,27989.0,27985.0,1.61383972]
[1680544066113,0.02299,27989.0,27986.0,0.030708]
[1680544066339,0.02299,27989.0,27986.0,0.578028]
[1680544066580,0.02299,27989.0,27987.0,0.428161]
[1680544066809,0.02299,27989.0,27988.0,0.029464]
[1680544067247,0.02299,27989.0,27988.0,0.256164]
[1680544067704,0.02899,27989.0,27988.0,0.257164]
[1680544067932,0.02299,27989.0,27988.0,0.256164]
[1680544068161,0.035494,27989.0,27986.0,0.37145316]
[1680544068373,0.02299,27989.0,27986.0,0.19985316]
[1680544068593,0.02299,27989.0,27987.0,0.02807]
[1680544069069,0.02899,27989.0,27988.0,0.001]
[1680544069336,0.02299,27989.0,27984.0,0.1716]
[1680544069572,0.00014684,27985.0,27983.0,0.57142]
[1680544069804,0.00014684,27985.0,27984.0,0.02739]
[1680544070495,0.00014684,27985.0,27984.0,0.25589]
[1680544070496,0.00114684,27985.0,27984.0,0.25589]
[1680544070947,0.00014684,27985.0,27984.0,0.25589]
[1680544071168,0.00114684,27985.0,27984.0,0.27589]
[1680544071402,0.00014684,27985.0,27984.0,0.25589]
[1680544071651,0.00114684,27985.0,27984.0,0.27589]
[1680544071887,0.00014684,27985.0,27984.0,0.25589]
[1680544072117,0.00114684,27985.0,27984.0,0.2415]
[1680544072335,0.00114684,27985.0,27984.0,0.271595]
[1680544072557,0.00114684,27985.0,27984.0,0.2415]
[1680544073031,0.00014684,27985.0,27984.0,0.2285]
[1680544073271,0.00114684,27985.0,27984.0,0.2355]
[1680544073494,0.00014684,27985.0,27984.0,0.2285]
[1680544073719,0.00114684,27985.0,27984.0,0.2355]
[1680544074202,0.00018,27988.0,27984.0,1.00607956]
[1680544074434,0.001,27985.0,27984.0,0.98397756]
[1680544074654,0.001,27985.0,27984.0,0.99526056]
[1680544075775,0.02299,27989.0,27984.0,0.98826056]
[1680544076017,0.001,27988.0,27985.0,0.7759]
[1680544076243,0.02299,27989.0,27986.0,0.029454]
[1680544076470,0.02368657,27988.0,27985.0,0.7759]
[1680544077185,0.00014684,27987.0,27985.0,0.4]
[1680544077413,0.00014684,27987.0,27983.0,0.77632]
[1680544077650,0.00014684,27987.0,27984.0,0.027128]
[1680544077892,0.00014684,27987.0,27983.0,1.13073056]
[1680544078251,0.00014684,27987.0,27984.0,0.028443]
[1680544078363,0.00014684,27987.0,27985.0,0.0633]
[1680544078821,0.00014684,27987.0,27985.0,0.4522]
[1680544079045,0.00014684,27987.0,27986.0,0.4]
[1680544079513,0.00114684,27987.0,27986.0,0.4]
[1680544079956,0.002,27987.0,27986.0,0.4]
[1680544080180,0.001,27987.0,27986.0,0.4]
[1680544080418,0.00014684,27988.0,27986.0,0.4]
[1680544080642,0.001,27987.0,27986.0,0.407]
[1680544081541,0.00014684,27988.0,27986.0,0.4]
[1680544081778,0.00114684,27988.0,27986.0,0.007]
[1680544082001,0.00014684,27985.0,27984.0,0.3759]
[1680544082692,0.00014684,27985.0,27982.0,0.77608]
[1680544082693,0.01265284,27985.0,27982.0,0.77608]
[1680544082930,0.01265284,27985.0,27981.0,0.00018]
[1680544082931,0.14189681,27984.0,27981.0,0.00018]
[1680544083186,0.14189681,27984.0,27979.0,0.4]
[1680544083187,0.00014684,27982.0,27979.0,0.00018]
[1680544083437,0.00014684,27982.0,27977.0,0.014295]
[1680544083438,0.00014684,27978.0,27977.0,0.014295]
[1680544083688,0.14204365,27978.0,27977.0,0.014295]
[1680544083912,0.00014684,27978.0,27977.0,0.014295]
[1680544084375,0.02682634,27978.0,27977.0,0.014295]
[1680544084611,0.03933534,27978.0,27977.0,0.014295]
[1680544085077,0.07387887,27978.0,27977.0,0.014295]
[1680544085081,0.07085004,27978.0,27977.0,0.021295]
[1680544085307,0.06985004,27978.0,27977.0,0.014295]
[1680544085542,0.07085004,27978.0,27977.0,0.021295]
[1680544085765,0.06985004,27978.0,27977.0,0.014295]
[1680544085988,0.08085004,27978.0,27977.0,0.015295]
[1680544086457,0.06985004,27978.0,27977.0,0.014295]
[1680544087359,0.08085004,27978.0,27977.0,0.016295]
[1680544087580,0.054119,27978.0,27977.0,0.016295]
[1680544088501,0.0476509,27978.0,27977.0,0.016295]
[1680544092338,0.0776239,27978.0,27977.0,0.016295]
[1680544093970,0.0476509,27978.0,27977.0,0.016295]
[1680544094882,0.0765529,27978.0,27977.0,0.016295]
[1680544095362,0.0476509,27978.0,27977.0,0.016295]
[1680544097195,0.0351419,27978.0,27977.0,0.016295]
[1680544098588,0.0351419,27978.0,27977.0,0.002]
[1680544099735,0.0351419,27978.0,27977.0,0.030488]
[1680544101349,0.00018,27983.0,27977.0,0.38319856]
[1680544101588,0.012507,27984.0,27978.0,1.15935756]
[1680544101825,0.06243714,27985.0,27979.0,0.02867]
[1680544102051,0.06243714,27985.0,27979.0,0.76282056]
[1680544102285,0.025012,27986.0,27980.0,1.13061056]
[1680544102286,0.012506,27986.0,27980.0,1.13061056]
[1680544102521,0.01970904,27983.0,27980.0,1.13061056]
[1680544102754,0.01970904,27983.0,27981.0,0.027971]
[1680544103388,0.012506,27985.0,27981.0,0.027971]
[1680544103616,0.012506,27985.0,27980.0,1.13061056]
[1680544104207,0.012506,27985.0,27980.0,1.14261056]
[1680544104432,0.012506,27985.0,27980.0,1.13061056]
[1680544104649,0.012506,27985.0,27980.0,1.14261056]
[1680544105551,0.012506,27986.0,27980.0,1.14261056]
[1680544105768,0.012506,27986.0,27981.0,0.029937]
[1680544105994,0.012506,27986.0,27982.0,0.3759]
[1680544106436,0.012506,27986.0,27983.0,0.4]
[1680544108049,0.016506,27986.0,27983.0,0.001]
[1680544108279,0.004,27986.0,27984.0,0.35471056]
[1680544108507,0.016506,27986.0,27985.0,0.3759]
[1680544109206,0.012506,27986.0,27985.0,0.3759]
[1680544109620,0.012506,27986.0,27984.0,0.35471056]
[1680544109848,0.012506,27986.0,27983.0,0.3759]
[1680544110066,0.012506,27986.0,27983.0,0.73061056]
[1680544110532,0.016506,27986.0,27984.0,0.001]
[1680544111015,0.114543,27985.0,27979.0,0.37902]
[1680544111255,0.037522,27984.0,27979.0,0.00366]
[1680544111481,0.22649681,27983.0,27979.0,0.00372]
[1680544111698,0.22649681,27983.0,27976.0,0.00018]
[1680544111699,0.116485,27982.0,27976.0,0.00018]
[1680544111935,0.14178282,27981.0,27975.0,0.00642]
[1680544112162,0.037527,27980.0,27975.0,0.20988943]
[1680544112392,0.037527,27980.0,27974.0,0.82066]
[1680544112393,0.14189681,27979.0,27974.0,0.82102]
[1680544112612,0.03753,27978.0,27974.0,0.8134]
[1680544112844,0.17960681,27978.0,27974.0,0.8134]
[1680544113351,0.17960681,27978.0,27974.0,0.3759]
[1680544113352,0.03771,27978.0,27974.0,0.3759]
[1680544113624,0.03771,27978.0,27974.0,0.3949]
[1680544114760,0.01963747,27977.0,27974.0,0.012]
[1680544115034,0.03214747,27977.0,27974.0,0.012]
[1680544115585,0.01251,27977.0,27974.0,0.012]
[1680544116149,0.01251,27977.0,27974.0,0.412]
[1680544117307,0.15440681,27977.0,27974.0,0.012]
[1680544117574,0.08069168,27977.0,27974.0,0.012]
[1680544117851,0.02909,27976.0,27974.0,0.012]
[1680544118138,0.037533,27975.0,27974.0,0.012]
[1680544118877,0.19324635,27975.0,27971.0,0.03686588]
[1680544118879,0.27804635,27975.0,27971.0,0.03686588]
[1680544119153,0.037713,27975.0,27974.0,0.001]
[1680544119435,0.037713,27975.0,27974.0,0.002]
[1680544119436,0.51338835,27975.0,27974.0,0.002]
[1680544119774,0.80738835,27975.0,27971.0,0.02990588]
[1680544120024,0.0848,27972.0,27971.0,0.03090588]
[1680544120297,0.201906,27972.0,27971.0,0.02990588]
[1680544120550,0.201726,27972.0,27971.0,0.02979473]
[1680544121049,0.35782274,27972.0,27971.0,0.02979473]
[1680544121288,0.43274114,27972.0,27971.0,0.02979473]
[1680544121739,0.43274114,27972.0,27971.0,0.03179473]
[1680544121963,0.43274114,27972.0,27971.0,0.02979473]
[1680544122190,0.43874114,27972.0,27971.0,0.03179473]
[1680544123122,1.14866614,27972.0,27971.0,0.03179473]
[1680544124090,1.15716614,27972.0,27971.0,0.03179473]
[1680544124320,1.15134614,27972.0,27971.0,0.02979473]
[1680544124547,1.17834614,27972.0,27971.0,0.03079473]
[1680544127744,0.226119,27972.0,27971.0,0.03079473]
[1680544128006,0.027,27972.0,27971.0,0.03079473]
[1680544128236,0.027,27972.0,27971.0,0.26024373]
[1680544128474,0.027,27972.0,27971.0,0.48372373]
[1680544128750,0.01962476,27976.0,27971.0,0.65426373]
[1680544128978,0.027,27972.0,27971.0,0.84804973]
[1680544129216,0.027,27972.0,27971.0,0.86002273]
[1680544129457,0.027,27972.0,27971.0,1.03156273]
[1680544129937,0.0498523,27977.0,27971.0,1.03056273]
[1680544130180,0.0498523,27977.0,27972.0,0.429329]
[1680544130455,0.0498523,27977.0,27973.0,0.046296]
[1680544130688,0.0498523,27977.0,27974.0,0.02914]
[1680544130939,0.96040458,27983.0,27976.0,0.2]
[1680544130940,0.00018,27983.0,27976.0,0.2]
[1680544131186,0.0842,27986.0,27978.0,0.4]
[1680544131429,0.25146123,27986.0,27979.0,0.028732]
[1680544131704,0.25146123,27986.0,27979.0,0.576112]
[1680544131705,0.14643778,27986.0,27979.0,0.576112]
[1680544131975,0.04973178,27986.0,27985.0,0.2]
[1680544132218,0.04973178,27986.0,27985.0,0.656028]
[1680544132482,0.02299,27989.0,27985.0,1.26695856]
[1680544132716,0.02299,27989.0,27987.0,0.3759]
[1680544132970,0.02299,27989.0,27988.0,0.75956956]
[1680544133215,0.02299,27989.0,27988.0,0.93098956]
[1680544133935,0.02399,27989.0,27988.0,0.95398956]
[1680544134180,0.02299,27989.0,27988.0,0.93098956]
[1680544134452,0.02399,27989.0,27988.0,0.95398956]
[1680544134716,0.02299,27989.0,27988.0,0.93098956]
[1680544135030,0.02399,27989.0,27988.0,1.69258956]
[1680544135269,0.02399,27989.0,27988.0,0.961979]
[1680544135820,0.02299,27989.0,27988.0,0.938979]
[1680544136075,0.02399,27989.0,27988.0,1.334879]
[1680544136373,0.02299,27989.0,27988.0,1.314879]
[1680544136604,0.02399,27989.0,27988.0,1.334879]
[1680544137313,0.02399,27989.0,27988.0,0.958979]
[1680544137763,0.02399,27989.0,27988.0,1.334879]
[1680544137991,0.02399,27989.0,27988.0,1.534879]
[1680544138447,0.02399,27989.0,27988.0,1.535059]
[1680544140523,0.01606902,27989.0,27988.0,1.534879]
[1680544140783,0.01606902,27989.0,27988.0,1.158979]
[1680544141041,0.01606902,27989.0,27988.0,0.987559]
[1680544142405,0.01606902,27989.0,27988.0,0.8506205]
[1680544142947,0.01606902,27989.0,27988.0,1.0220405]
[1680544143177,0.01606902,27989.0,27988.0,0.8506205]
[1680544143840,0.01606902,27989.0,27988.0,0.6506205]
[1680544144123,0.01606902,27989.0,27988.0,0.1856033]
[1680544144356,0.02857302,27989.0,27988.0,0.1856033]
[1680544145023,0.18249829,27989.0,27988.0,0.1856033]
[1680544145260,0.30701129,27989.0,27988.0,0.1856033]
[1680544145489,0.32839514,27989.0,27985.0,0.00018]
[1680544145738,0.32839514,27989.0,27983.0,0.17142]
[1680544145739,0.0833389,27989.0,27983.0,0.17142]
[1680544145971,0.0848,27988.0,27982.0,0.3]
[1680544146197,0.097305,27988.0,27982.0,0.3]
[1680544146425,0.14189681,27987.0,27982.0,0.1656033]
[1680544146663,0.22687681,27988.0,27985.0,0.001]
[1680544146898,0.16694097,27987.0,27982.0,0.17148]
[1680544147132,0.34140751,27987.0,27985.0,0.1656033]
[1680544147357,0.34140751,27987.0,27982.0,0.007]
[1680544147358,0.038579,27986.0,27982.0,0.1727833]
[1680544147575,0.14207681,27986.0,27985.0,0.1530973]
[1680544147803,0.012506,27986.0,27982.0,0.00718]
[1680544148037,0.012506,27986.0,27980.0,0.80538]
[1680544148273,0.15440281,27986.0,27982.0,0.007]
[1680544148506,0.16694097,27987.0,27980.0,0.9584773]
[1680544148733,0.012,27986.0,27985.0,0.001]
[1680544148968,0.16694097,27987.0,27982.0,6e-05]
[1680544149215,0.001,27986.0,27982.0,0.008]
[1680544149431,0.16694097,27987.0,27982.0,0.1530973]
[1680544149675,0.012,27986.0,27985.0,0.001]
[1680544149913,0.08700046,27989.0,27984.0,0.3759]
[1680544150130,0.08682046,27989.0,27985.0,0.1744333]
[1680544150352,0.08682046,27989.0,27986.0,0.019243]
[1680544150590,0.08682046,27989.0,27985.0,0.020385]
[1680544150876,0.08682046,27989.0,27985.0,0.591805]
[1680544151104,0.08682046,27989.0,27986.0,0.020222]
[1680544151336,0.08682046,27989.0,27985.0,0.3245173]
[1680544151568,0.09882046,27989.0,27986.0,0.1530973]
[1680544151797,0.09882046,27989.0,27985.0,0.17142]